bitfinex/quotes_ETHUSD_20250602
["timestamp","ask_amount","ask_price","bid_price","bid_amount"]
[1748828431192,0.58306481,2531.5,2531.4,3.95038318]
[1748828431593,0.55,2531.4,2531.3,3.95045989]
[1748828431788,0.37735952,2531.4,2531.3,3.95045989]
[1748828432004,0.92735952,2531.4,2531.3,3.95045989]
[1748828433719,0.92735952,2531.4,2531.2,3.95061208]
[1748828433894,0.37735952,2531.3,2531.2,3.95061208]
[1748828434280,0.37704928,2531.3,2531.2,3.95061208]
[1748828434485,0.20570529,2531.5,2531.2,3.95061208]
[1748828434685,0.20570529,2531.5,2531.4,3.95038318]
[1748828434903,0.58270593,2531.5,2531.4,3.95038318]
[1748828435718,0.58270593,2531.5,2531.2,0.86816047]
[1748828435921,0.20570529,2531.5,2531.4,3.95038318]
[1748828436115,0.5826106,2531.5,2531.4,3.95038318]
[1748828438323,0.20570529,2531.5,2531.3,3.95053924]
[1748828438920,0.20570529,2531.5,2531.2,3.95062824]
[1748828439110,0.20570529,2531.5,2531.3,3.95052343]
[1748828439623,0.20570529,2531.5,2531.2,3.9506225]
[1748828439990,0.20570529,2531.5,2531.3,3.95053474]
[1748828440327,0.20570529,2531.5,2531.2,1.03777104]
[1748828440532,3.29887305,2531.4,2530.9,0.39511636]
[1748828440843,3.29887305,2531.4,2530.8,0.8064]
[1748828440844,0.55,2531.1,2530.8,3.95128939]
[1748828441200,1.3727,2531.1,2530.7,3.95137789]
[1748828441823,1.3727,2531.1,2530.8,3.95131831]
[1748828442246,1.3727,2531.1,2530.9,3.95114839]
[1748828443422,1.3727,2531.1,2530.8,3.95123919]
[1748828443618,1.74917184,2531.1,2530.8,3.95123919]
[1748828444159,0.55,2531.0,2530.9,3.95112513]
[1748828448932,0.55,2531.0,2530.8,3.95124886]
[1748828450446,0.55,2531.0,2530.7,3.95139493]
[1748828450619,1.3675,2530.9,2530.5,3.95168235]
[1748828450821,1.3675,2530.9,2530.6,3.95162329]
[1748828451538,0.55,2530.7,2530.6,3.95162329]
[1748828467497,0.92725623,2530.7,2530.6,3.95162329]
[1748828469492,0.92725623,2530.7,2530.4,3.95181691]
[1748828469692,0.37725623,2530.6,2530.5,3.95178818]
[1748828472393,0.37725623,2530.6,2530.0,1.89]
[1748828472566,0.55,2530.4,2530.3,3.95207791]
[1748828472987,0.75576953,2530.4,2530.3,3.95207791]
[1748828477717,0.20576953,2530.4,2530.3,4.74251136]
[1748828477882,4.067,2530.8,2530.3,5.50131136]
[1748828478065,0.92778287,2530.7,2530.6,3.95150422]
[1748828478456,0.92778287,2530.7,2530.4,3.95194435]
[1748828478704,0.37778287,2530.6,2530.4,3.95194435]
[1748828478881,0.37778287,2530.5,2530.4,3.95194435]
[1748828479516,0.37787081,2530.5,2530.4,3.95194435]
[1748828482210,0.92787081,2530.5,2530.4,3.95194435]
[1748828483988,0.92793313,2530.5,2530.4,3.95194435]
[1748828488293,0.55,2530.5,2530.3,3.95199602]
[1748828488495,0.92795548,2530.4,2530.1,4.78059849]
[1748828488699,0.92795548,2530.4,2529.7,3.95292541]
[1748828488700,3.6767364,2530.3,2529.8,3.95281437]
[1748828488904,3.6767364,2530.3,2529.9,3.9527254]
[1748828488905,0.55,2530.1,2529.9,3.9527254]
[1748828489525,0.55,2530.2,2529.9,3.9527254]
[1748828489822,0.37768608,2530.1,2529.9,3.9527254]
[1748828489989,0.92768608,2530.0,2529.9,3.9527254]
[1748828491021,0.55,2530.0,2529.9,3.9527254]
[1748828491185,0.92748318,2530.0,2529.9,3.9527254]
[1748828491722,0.55,2530.0,2529.9,3.9527254]
[1748828492236,0.47243955,2530.4,2529.6,4.71379418]
[1748828492394,3.57497305,2530.5,2530.0,4.71316916]
[1748828492395,0.55,2530.1,2530.0,4.71316916]
[1748828493390,0.55,2530.1,2530.0,3.95256916]
[1748828497257,0.55,2530.4,2530.1,3.95240457]
[1748828497543,0.37721045,2530.3,2530.0,3.95248486]
[1748828497747,0.55,2530.1,2530.0,3.95248486]
[1748828498863,0.75558159,2530.1,2530.0,3.95248486]
[1748828499663,1.13276924,2530.1,2530.0,3.95248486]
[1748828501261,0.75558159,2530.1,2529.9,3.95264508]
[1748828501469,0.75558159,2530.1,2530.0,3.95256916]
[1748828501626,1.13277756,2530.1,2530.0,3.95256916]
[1748828504562,1.13277756,2530.1,2529.9,3.95263791]
[1748828504789,0.75558159,2530.1,2529.9,3.95263791]
[1748828504964,0.55,2529.9,2529.7,3.95300355]
[1748828505161,0.55,2529.9,2529.7,3.95301534]
[1748828505661,0.55,2530.0,2529.6,3.95314246]
[1748828505863,0.55,2529.6,2529.2,0.7565]
[1748828506349,0.55,2529.7,2529.4,3.95343261]
[1748828506755,0.37688524,2529.6,2529.4,3.95343261]
[1748828507063,7.5336689,2529.9,2529.1,0.02]
[1748828507064,0.55,2529.9,2529.8,3.95284107]
[1748828507238,5.19498875,2529.9,2529.3,3.95355397]
[1748828507443,0.55,2529.7,2529.5,3.95328074]
[1748828507655,0.55,2529.9,2529.7,3.95296323]
[1748828507854,0.55,2529.8,2529.7,3.95296323]
[1748828508382,0.37685376,2529.9,2529.8,3.95277101]
[1748828508583,0.55,2530.0,2529.8,3.95277101]
[1748828508778,0.37685645,2529.9,2529.7,3.95296764]
[1748828508979,0.55,2530.0,2529.7,3.95302739]
[1748828509181,0.55,2530.0,2529.6,3.95314851]
[1748828509383,0.55,2530.0,2529.7,3.95290034]
[1748828509560,0.55,2530.0,2529.8,3.95280017]
[1748828509972,0.55,2530.0,2529.4,4.7198633]
[1748828510170,0.20558159,2530.1,2530.0,3.95256916]
[1748828510387,0.58244461,2530.1,2530.0,3.95256916]
[1748828510752,0.20558159,2530.1,2530.0,3.95256916]
[1748828511354,0.20558159,2530.1,2529.9,3.95265193]
[1748828512483,0.20558159,2530.1,2530.0,3.95256916]
[1748828515059,0.20558159,2530.1,2529.9,3.95264773]
[1748828515359,0.20558159,2530.1,2530.0,3.95256916]
[1748828515895,0.20558159,2530.1,2529.9,3.95266299]
[1748828516098,0.20558159,2530.1,2530.0,3.95256916]
[1748828516763,0.55,2530.4,2530.2,3.95222938]
[1748828516764,4.064,2530.4,2530.2,3.95222938]
[1748828517091,1.13311701,2530.3,2530.2,3.95222938]
[1748828517390,0.58311701,2530.3,2530.2,3.95222938]
[1748828519391,0.58323162,2530.3,2530.2,3.95222938]
[1748828520497,0.55,2530.5,2530.2,1.58766393]
[1748828520661,0.55,2530.5,2530.2,3.95217268]
[1748828520662,0.37725467,2530.4,2530.2,3.95217268]
[1748828520990,0.75593963,2530.5,2530.3,3.95209561]
[1748828521293,0.37725603,2530.4,2530.3,3.95209561]
[1748828521792,0.37725603,2530.4,2530.2,3.95216899]
[1748828521994,0.75593963,2530.5,2530.2,3.95216899]
[1748828522197,0.37721545,2530.4,2530.2,3.95216899]
[1748828522499,0.75593963,2530.5,2530.3,3.95210054]
[1748828522795,0.37717434,2530.4,2530.3,3.95210054]
[1748828523394,0.75593963,2530.5,2530.3,3.95210054]
[1748828524173,0.75593963,2530.5,2530.3,3.95196034]
[1748828525197,3.12893963,2530.5,2530.3,3.95196034]
[1748828525499,0.92719175,2530.4,2530.3,3.95196034]
[1748828525702,0.55,2530.4,2530.3,3.95196034]
[1748828526968,0.92712678,2530.4,2530.3,3.95196034]
[1748828528264,0.55,2530.4,2530.3,3.95196034]
[1748828529204,0.92708399,2530.4,2530.3,3.95196034]
[1748828529401,0.92708399,2530.4,2530.1,3.9523542]
[1748828529593,0.92708399,2530.4,2529.8,0.7817]
[1748828529594,2.74887305,2530.2,2529.8,0.7817]
[1748828529801,0.55,2530.1,2529.9,3.9525963]
[1748828530195,0.55,2530.1,2530.0,3.95256916]
[1748828530391,1.60818967,2530.4,2530.2,3.95219278]
[1748828530392,0.55,2530.3,2530.2,3.95219278]
[1748828530573,4.98901624,2530.3,2530.1,3.95233357]
[1748828530774,0.92701624,2530.2,2530.1,3.95233357]
[1748828531506,0.55,2530.1,2530.0,3.95249054]
[1748828531714,0.55,2530.2,2529.6,0.7817]
[1748828531921,0.37700412,2530.1,2529.9,3.95258255]
[1748828532122,0.55,2529.9,2529.7,3.95291051]
[1748828533013,0.55,2529.9,2529.8,3.95288165]
[1748828534071,0.8164,2530.2,2529.8,0.7544]
[1748828534305,4.73921296,2530.5,2530.1,3.95241294]
[1748828534605,0.55,2530.3,2530.2,3.95215196]
[1748828534901,0.92715865,2530.3,2530.2,3.95215196]
[1748828535119,0.92715865,2530.3,2530.1,3.95234266]
[1748828535330,0.55,2530.3,2530.1,3.95234266]
[1748828535709,0.37715474,2530.2,2530.1,3.95234266]
[1748828536214,0.55,2530.3,2530.1,3.95234266]
[1748828536514,0.37732204,2530.2,2530.1,3.95234266]
[1748828536700,0.37732402,2530.2,2530.1,3.95234266]
[1748828539520,0.37732402,2530.2,2530.0,3.95249497]
[1748828539727,0.55,2530.4,2529.9,3.9527254]
[1748828539887,0.37755316,2530.3,2530.1,3.95237814]
[1748828540221,0.37755316,2530.2,2530.0,3.95253176]
[1748828540408,0.37755316,2530.1,2530.0,3.95253176]
[1748828541020,0.37756795,2530.1,2530.0,3.95253176]
[1748828542423,0.37756795,2530.1,2529.9,4.42336021]
[1748828542717,0.20597332,2530.2,2529.9,4.42336021]
[1748828542897,0.37758487,2530.1,2530.0,3.95253676]
[1748828549838,0.37762503,2530.1,2530.0,3.95253676]
[1748828550128,0.37762503,2530.1,2529.9,0.47071254]
[1748828550331,0.55,2530.1,2529.7,3.95301966]
[1748828550624,0.55,2530.1,2529.6,0.7851]
[1748828550625,0.37762416,2530.0,2529.6,0.7851]
[1748828550807,0.55,2530.1,2529.6,0.7851]
[1748828550808,0.37762416,2529.9,2529.7,3.95295674]
[1748828551122,0.37757831,2529.8,2529.7,3.95295674]
[1748828552010,0.37757831,2529.8,2529.6,8.60402356]
[1748828552212,0.7917,2530.0,2529.7,3.95302298]
[1748828552409,0.92756238,2529.9,2529.6,3.95317949]
[1748828552741,0.37756238,2529.8,2529.6,3.95317949]
[1748828552924,0.37756238,2529.7,2529.5,3.95326578]
[1748828553130,0.55,2529.9,2529.6,3.95318715]
[1748828553328,0.37743232,2529.8,2529.6,3.95318715]
[1748828553489,0.37743232,2529.7,2529.6,3.95318715]
[1748828554150,0.55,2529.9,2529.6,3.95318715]
[1748828554323,0.37742448,2529.8,2529.6,3.95318715]
[1748828554533,0.37742448,2529.7,2529.6,3.95318715]
[1748828555361,0.55,2529.9,2529.6,3.95318715]
[1748828555526,0.55,2529.9,2529.5,3.95334221]
[1748828555527,0.37731521,2529.8,2529.7,3.9530379]
[1748828556257,0.37731521,2529.8,2529.6,3.95312087]
[1748828556560,0.55,2529.9,2529.7,3.9530379]
[1748828556753,0.37731415,2529.8,2529.7,3.9530379]
[1748828557314,0.37731415,2529.8,2529.5,3.95334221]
[1748828557544,0.55,2529.9,2529.5,3.95334221]
[1748828557727,0.37728207,2529.8,2529.5,3.95334221]
[1748828557938,0.55,2529.9,2529.7,3.95301098]
[1748828558125,0.37728146,2529.8,2529.7,3.95301098]
[1748828558532,0.37725932,2529.8,2529.7,3.95301098]
[1748828561258,0.58328222,2529.8,2529.7,3.95301098]
[1748828561436,0.58324128,2529.8,2529.7,3.95301098]
[1748828562578,0.58324029,2529.8,2529.5,3.95335046]
[1748828562745,0.55,2529.7,2529.4,5.01548061]
[1748828563265,0.55,2529.7,2529.5,3.95334994]
[1748828568271,0.55,2529.7,2529.4,5.01543532]
[1748828568465,0.55,2529.7,2529.5,3.95333858]
[1748828569833,0.55,2529.7,2529.6,3.95319418]
[1748828570028,0.927165,2529.7,2529.6,3.95319418]
[1748828570349,0.55,2529.7,2529.6,3.95319418]
[1748828572174,0.92723111,2529.7,2529.6,3.95319418]
[1748828572477,0.55,2529.7,2529.6,3.95319418]
[1748828572639,0.92723112,2529.7,2529.6,3.95319418]
[1748828575565,0.92723112,2529.7,2529.2,2.73095468]
[1748828575734,0.55,2529.7,2529.2,3.50763285]
[1748828576478,0.55,2529.7,2529.5,3.95329618]
[1748828577482,0.55,2529.7,2529.4,3.95346]
[1748828577859,0.55,2529.7,2529.5,3.95332852]
[1748828578182,0.37748815,2529.6,2529.5,3.95332852]
[1748828578474,0.37748815,2529.6,2529.4,3.95342395]
[1748828578642,0.55,2529.7,2529.4,3.95342395]
[1748828578842,0.37748067,2529.6,2529.4,3.95342395]
[1748828579050,0.55,2529.7,2529.4,3.95342395]
[1748828579255,0.37758239,2529.6,2529.4,3.95342395]
[1748828579455,0.55,2529.7,2529.3,3.95355003]
[1748828579657,0.37758048,2529.6,2529.3,3.95355003]
[1748828579881,0.55,2529.7,2529.4,3.95345925]
[1748828580079,0.3775735,2529.6,2529.4,3.95345925]
[1748828580299,0.55,2529.7,2529.2,4.77479321]
[1748828580480,6.49722694,2529.7,2529.2,4.77472696]
[1748828580685,0.55,2529.5,2529.3,3.95358834]
[1748828581289,0.55,2529.6,2529.3,3.95358834]
[1748828581444,0.37777997,2529.5,2529.3,3.95358834]
[1748828581650,0.20603717,2529.5,2529.3,3.95358834]
[1748828585204,0.20603717,2529.5,2529.2,0.821]
[1748828585374,0.20603717,2529.5,2529.2,3.95371668]
[1748828585776,0.20603717,2529.5,2529.2,3.95376071]
[1748828586004,0.3777077,2529.4,2529.2,3.95376071]
[1748828586203,0.20603717,2529.5,2529.2,3.95376071]
[1748828586405,0.37768687,2529.4,2529.2,3.95376071]
[1748828586606,0.20603717,2529.5,2529.2,3.95376071]
[1748828586902,0.37764065,2529.4,2529.2,3.95376071]
[1748828587107,0.20603717,2529.5,2529.2,3.95376071]
[1748828587311,0.37763765,2529.4,2529.2,3.95376071]
[1748828587476,0.20603717,2529.5,2529.2,3.95376071]
[1748828587677,0.37758013,2529.4,2529.2,3.95376071]
[1748828587876,0.20603717,2529.5,2529.2,3.95376071]
[1748828588078,0.37757985,2529.4,2529.2,3.95376071]
[1748828588301,0.37758114,2529.3,2529.1,0.02]
[1748828588504,0.88324914,2529.3,2529.1,0.02]
[1748828588698,0.37745008,2529.2,2529.1,0.02]
[1748828589314,12.08539243,2529.2,2529.1,0.02]
[1748828589517,14.83578225,2529.2,2529.1,0.02]
[1748828589677,8.50110417,2529.2,2529.1,0.02]
[1748828589881,12.93395099,2529.2,2529.1,0.02]
[1748828590094,12.46278225,2529.2,2529.1,0.02]
[1748828590492,12.93358482,2529.2,2529.1,0.02]
[1748828591615,12.46278225,2529.2,2529.1,0.02]
[1748828591812,1.31995972,2529.2,2529.1,0.02]
[1748828592116,0.37645166,2529.2,2529.1,3.97397572]
[1748828592316,0.37645166,2529.4,2529.1,4.84980672]
[1748828592517,0.37645166,2529.3,2529.1,4.84980672]
[1748828592700,4.42961852,2529.5,2529.1,0.895831]
[1748828592906,0.37647751,2529.4,2529.1,0.02]
[1748828593105,0.55,2529.4,2529.2,3.95368999]
[1748828593282,0.55,2529.4,2529.3,3.95366306]
[1748828593481,4.42961852,2529.5,2529.3,3.95366306]
[1748828593817,0.55,2529.4,2529.3,3.95366306]
[1748828593982,0.55,2529.4,2529.2,3.95374094]
[1748828595624,0.55,2529.4,2529.3,3.95366306]
[1748828595926,4.42961852,2529.5,2529.4,4.71790676]
[1748828597120,4.42961852,2529.5,2529.4,0.7644]
[1748828597504,4.42961852,2529.5,2529.3,3.95359205]
[1748828597818,4.42961852,2529.5,2529.4,3.95350676]
[1748828598322,4.42961852,2529.5,2529.2,4.77564235]
[1748828598487,4.42961852,2529.5,2529.2,5.75659926]
[1748828599024,0.55,2529.4,2529.2,4.77564235]
[1748828601019,0.55,2529.4,2529.2,0.8219]
[1748828601395,0.55,2529.4,2529.2,4.77570853]
[1748828602592,0.55,2529.4,2529.3,3.95366306]
[1748828610439,0.55,2529.4,2529.2,3.95376041]
[1748828610645,0.55,2529.4,2529.3,3.95366306]
[1748828610828,4.22358135,2529.5,2529.4,3.95350676]
[1748828611039,5.15040701,2529.5,2529.4,3.95350676]
[1748828611546,5.15040701,2529.5,2529.3,3.95360931]
[1748828611838,4.77358135,2529.5,2529.4,3.95350676]
[1748828612039,5.1504178,2529.5,2529.4,3.95350676]
[1748828612434,5.1504178,2529.5,2529.3,3.95358745]
[1748828612638,4.77358135,2529.5,2529.1,3.97392808]
[1748828612837,0.55,2529.5,2529.1,4.68992241]
[1748828613018,0.55,2529.5,2529.1,4.68995363]
[1748828613223,0.55,2529.5,2529.3,3.95364532]
[1748828613751,0.55,2529.5,2529.2,3.95371758]
[1748828613957,0.55,2529.4,2529.1,3.97389367]
[1748828614124,0.55,2529.5,2529.1,3.97389367]
[1748828614543,0.55,2529.5,2529.2,3.95378377]
[1748828614740,0.55,2529.5,2529.3,3.95362744]
[1748828615658,0.55,2529.5,2529.1,0.02]
[1748828615827,0.55,2529.5,2529.3,3.95358887]
[1748828616224,0.55,2529.6,2529.4,3.95346314]
[1748828616430,0.37690848,2529.5,2529.4,3.95346314]
[1748828617143,3.06568255,2530.0,2529.8,3.9527585]
[1748828617322,0.37693047,2529.9,2529.8,3.9527585]
[1748828618059,0.55,2529.8,2529.7,3.95295114]
[1748828618951,0.55,2529.9,2529.7,3.95295114]
[1748828619157,0.55,2530.1,2529.7,3.95295114]
[1748828619351,2.923,2529.9,2529.7,3.95295114]
[1748828619552,0.55,2529.9,2529.7,3.95295852]
[1748828620436,0.55,2530.1,2529.7,3.95295852]
[1748828620631,0.55,2529.9,2529.7,3.95295852]
[1748828620968,0.55,2530.1,2529.7,3.95295852]
[1748828621170,0.55,2529.9,2529.7,3.95295852]
[1748828622380,0.55,2530.1,2529.7,3.95295852]
[1748828622670,0.55,2529.9,2529.7,3.95295852]
[1748828622875,0.55,2530.1,2529.7,3.95295072]
[1748828623178,0.55,2529.9,2529.7,3.95295072]
[1748828623341,0.55,2530.1,2529.7,3.95295072]
[1748828623540,0.55,2529.9,2529.7,3.95295072]
[1748828623739,0.55,2530.1,2529.7,3.95295072]
[1748828623944,0.55,2529.9,2529.7,3.95295072]
[1748828624362,0.55,2529.9,2529.4,4.842]
[1748828624582,0.55,2529.7,2529.2,0.815]
[1748828624814,0.55,2529.3,2529.1,0.02]
[1748828624949,4.07307305,2529.2,2529.1,0.02]
[1748828625142,13.26052025,2529.2,2529.1,0.02]
[1748828625985,9.30670087,2529.2,2529.1,0.02]
[1748828627560,9.30641,2529.2,2529.1,0.02]
[1748828627882,23.64152938,2529.2,2529.1,0.02]
[1748828628818,21.73935477,2529.2,2529.1,0.02]
[1748828629305,21.26852938,2529.2,2529.1,0.02]
[1748828629487,21.73884633,2529.2,2529.1,0.02]
[1748828631409,17.68484633,2529.2,2529.1,0.02]
[1748828631572,21.26852938,2529.2,2529.1,0.02]
[1748828631969,17.21452938,2529.2,2529.1,0.02]
[1748828632203,21.26852938,2529.2,2529.1,0.02]
[1748828632411,21.26774123,2529.2,2529.1,0.02]
[1748828635203,21.26774123,2529.2,2529.1,0.02]
[1748828636270,10.5110488,2529.2,2529.1,0.02]
[1748828636473,17.71619154,2529.2,2529.1,0.02]
[1748828636684,17.71574696,2529.2,2529.1,0.02]
[1748828639307,17.92155102,2529.2,2529.1,0.02]
[1748828640705,17.92139904,2529.2,2529.1,0.02]
[1748828643115,20.29439904,2529.2,2529.1,0.02]
[1748828647206,20.29339904,2529.2,2529.1,0.02]
[1748828648493,20.76249354,2529.2,2529.1,0.02]
[1748828648993,19.91812344,2529.2,2529.1,0.02]
[1748828649193,20.76236226,2529.2,2529.1,0.02]
[1748828649421,20.29334069,2529.2,2529.1,0.02]
[1748828649623,20.76236226,2529.2,2529.1,0.02]
[1748828650599,23.51123531,2529.2,2529.1,0.02]
[1748828651310,19.45823531,2529.2,2529.1,0.02]
[1748828651511,23.04221374,2529.2,2529.1,0.02]
[1748828651908,23.04273522,2529.2,2529.1,0.02]
[1748828652599,22.66699649,2529.2,2529.1,0.02]
[1748828652803,23.04300222,2529.2,2529.1,0.02]
[1748828653324,18.99000222,2529.2,2529.1,0.02]
[1748828653523,0.58180979,2529.2,2529.1,0.02]
[1748828653731,0.58180979,2529.2,2529.1,3.97397572]
[1748828653890,0.58180979,2529.2,2529.1,0.89380045]
[1748828654290,0.58180979,2529.2,2529.1,0.02]
[1748828654291,17.23727749,2529.2,2529.1,0.02]
[1748828654513,18.98160222,2529.2,2529.1,0.02]
[1748828655121,23.66283803,2529.2,2529.1,0.02]
[1748828655317,23.03460222,2529.2,2529.1,0.02]
[1748828655923,0.55,2528.5,2528.2,0.7831]
[1748828656122,0.55,2528.3,2528.2,1.25896911]
[1748828656317,0.55,2528.4,2528.2,1.25896911]
[1748828656543,0.37709047,2528.3,2528.2,0.7831]
[1748828661446,0.37715365,2528.3,2528.2,0.7831]
[1748828661638,0.37715365,2528.3,2528.2,4.73848327]
[1748828662040,0.37715365,2528.3,2528.2,0.7831]
[1748828662751,0.37715365,2528.3,2528.2,4.73848327]
[1748828662926,0.55,2528.5,2528.3,0.8228]
[1748828663248,0.37712733,2528.4,2528.3,0.8228]
[1748828665015,4.33221288,2528.4,2528.1,0.02]
[1748828665318,0.92712733,2528.3,2528.1,0.802]
[1748828665663,0.55,2528.3,2528.1,0.802]
[1748828667239,4.50509428,2528.4,2528.1,0.802]
[1748828667439,0.37717766,2528.3,2528.1,0.802]
[1748828667753,0.92720802,2528.2,2528.1,0.802]
[1748828668119,0.92720802,2528.2,2528.1,0.02]
[1748828668930,0.37720802,2528.2,2528.1,0.8164]
[1748828669122,0.67712475,2528.6,2528.1,0.8164]
[1748828669123,0.55,2528.5,2528.2,3.95528712]
[1748828669317,0.37723408,2528.4,2528.3,3.95522683]
[1748828669626,0.92723408,2528.4,2528.3,4.76172683]
[1748828670015,0.92723408,2528.4,2528.3,0.8065]
[1748828670221,0.92728327,2528.4,2528.3,0.8065]
[1748828670760,0.92728327,2528.4,2528.3,4.76172683]
[1748828670938,0.37728327,2528.4,2528.3,5.72270918]
[1748828673667,0.67731672,2528.8,2528.3,5.72270918]
[1748828673668,0.55,2528.8,2528.5,3.95490761]
[1748828673951,0.37733534,2528.7,2528.5,3.95490761]
[1748828674153,0.37734387,2528.6,2528.4,4.77543045]
[1748828674356,0.55,2528.8,2528.5,4.52850239]
[1748828674518,0.37733732,2528.7,2528.5,3.95486111]
[1748828674719,0.37733732,2528.6,2528.5,3.95486111]
[1748828675018,0.37733732,2528.6,2528.4,4.77539964]
[1748828675216,0.37729664,2528.5,2528.4,0.8204]
[1748828675434,4.50445558,2528.8,2528.4,0.8204]
[1748828675655,0.37726623,2528.7,2528.4,0.8204]
[1748828675858,0.37726623,2528.6,2528.4,6.14984985]
[1748828676055,0.55,2528.8,2528.4,6.14984985]
[1748828676247,0.37727657,2528.7,2528.4,6.14984985]
[1748828676448,0.37727657,2528.6,2528.4,6.14984985]
[1748828676756,0.55,2528.8,2528.4,6.14984985]
[1748828676961,0.37724948,2528.7,2528.4,6.14984985]
[1748828677160,0.37724948,2528.6,2528.4,6.14984985]
[1748828677460,0.55,2528.8,2528.4,6.14984985]
[1748828677763,0.3772179,2528.7,2528.4,2.19478503]
[1748828678070,0.55,2528.8,2528.7,0.8204]
[1748828678221,0.92721563,2528.8,2528.7,0.8204]
[1748828683398,0.37701858,2528.8,2528.7,0.8204]
[1748828684362,0.92701858,2528.8,2528.7,0.8204]
[1748828684672,0.92701858,2528.8,2528.5,3.95491323]
[1748828684846,0.37701858,2528.7,2528.5,4.74592724]
[1748828685045,0.55,2528.8,2528.5,5.56162724]
[1748828685261,0.37697701,2528.7,2528.5,5.56162724]
[1748828685560,0.55,2528.8,2528.5,5.56162724]
[1748828685870,0.37695748,2528.7,2528.5,5.56162724]
[1748828686167,0.55,2528.8,2528.5,5.56162724]
[1748828686378,0.37694519,2528.7,2528.6,3.95475757]
[1748828686545,0.37694519,2528.7,2528.6,4.9064254]
[1748828687336,0.37694519,2528.7,2528.6,0.95166783]
[1748828687536,0.55,2528.8,2528.6,0.95166783]
[1748828687736,0.37693161,2528.7,2528.6,0.95166783]
[1748828689455,0.37693161,2528.7,2528.6,0.95166783]
[1748828689668,0.37693161,2528.7,2528.6,4.9064254]
[1748828690249,0.55,2529.1,2528.6,4.9064254]
[1748828690479,0.37693413,2529.0,2528.7,3.95460117]
[1748828690680,0.37693413,2528.9,2528.7,3.95460117]
[1748828690881,0.55,2529.1,2528.8,0.7546]
[1748828691180,0.37694793,2529.0,2528.8,0.7546]
[1748828691341,0.55,2529.1,2528.8,0.7546]
[1748828691542,0.37690464,2529.0,2528.8,0.7546]
[1748828691784,0.55,2529.1,2528.8,0.7546]
[1748828691943,0.3769095,2529.0,2528.8,0.7546]
[1748828692144,0.55,2529.1,2528.8,0.7546]
[1748828692364,0.37691327,2529.0,2528.8,0.7546]
[1748828692683,0.55,2529.1,2528.8,0.7546]
[1748828692988,0.37687408,2529.0,2528.8,0.7546]
[1748828693280,0.55,2529.1,2528.8,0.7546]
[1748828693482,0.55,2528.9,2528.6,4.70954528]
[1748828694673,0.55,2528.9,2528.7,3.95459239]
[1748828695465,0.55,2528.9,2528.6,4.70948634]
[1748828695968,0.55,2528.9,2528.7,3.95459795]
[1748828696488,0.55,2528.9,2528.6,4.70947142]
[1748828697158,0.55,2528.9,2528.5,3.95484808]
[1748828697355,0.37690042,2528.8,2528.5,3.95484808]
[1748828697559,0.55,2528.9,2528.5,3.95484808]
[1748828697862,0.37693441,2528.8,2528.5,3.95484808]
[1748828698067,0.55,2528.9,2528.5,3.95484808]
[1748828698391,0.37693491,2528.8,2528.5,3.95484808]
[1748828698591,0.55,2528.9,2528.5,3.95484808]
[1748828698794,0.37701891,2528.8,2528.5,3.95484808]
[1748828698954,0.55,2528.9,2528.4,4.76985363]
[1748828699162,0.55,2528.7,2528.4,4.76978519]
[1748828699356,0.55,2528.7,2528.4,0.8148]
[1748828699584,0.55,2528.7,2528.1,3.97546606]
[1748828699585,0.55,2528.5,2528.1,3.97546606]
[1748828699761,0.37705745,2528.4,2528.1,3.97546606]
[1748828699957,0.37705745,2528.3,2528.2,3.95536956]
[1748828700565,0.55,2528.5,2528.2,3.95538327]
[1748828700766,0.37694889,2528.4,2528.3,3.95514618]
[1748828700973,0.37694889,2528.4,2528.2,3.9553201]
[1748828701298,0.55,2528.5,2528.1,4.76117131]
[1748828701498,0.37701239,2528.4,2528.1,4.76117131]
[1748828701663,0.55,2528.5,2528.1,4.76117131]
[1748828701854,0.37695408,2528.4,2528.1,4.76117131]
[1748828702062,0.92699608,2528.3,2528.1,0.02]
[1748828702261,0.55,2528.3,2528.1,0.02]
[1748828702563,3.29887305,2528.2,2528.1,0.02]
[1748828709425,8.43904727,2528.2,2528.1,0.02]
[1748828709611,9.4945171,2528.2,2528.1,0.02]
[1748828709815,5.53912066,2528.2,2528.1,0.02]
[1748828710729,4.73042066,2528.2,2528.1,0.02]
[1748828711484,3.67495083,2528.2,2528.1,0.02]
[1748828711689,3.29887305,2528.2,2528.1,0.02]
[1748828713033,3.67469344,2528.2,2528.1,0.02]
[1748828713326,3.29887305,2528.2,2528.1,0.02]
[1748828714636,3.67460718,2528.2,2528.1,0.02]
[1748828716415,3.29887305,2528.2,2528.1,0.02]
[1748828718897,7.25425632,2528.2,2528.1,0.02]
[1748828719102,10.00286779,2528.2,2528.1,0.02]
[1748828719338,6.04748452,2528.2,2528.1,0.02]
[1748828719695,0.92561147,2528.2,2528.1,0.02]
[1748828720003,0.55,2528.2,2528.1,0.02]
[1748828721534,0.55,2528.3,2528.1,4.78126402]
[1748828721705,0.55,2528.3,2528.2,3.95538327]
[1748828721906,0.55,2528.3,2528.1,5.65494906]
[1748828722633,0.55,2528.3,2528.2,3.95538327]
[1748828723000,0.55,2528.3,2528.1,1.69949274]
[1748828723200,0.37579879,2528.5,2528.1,1.69949274]
[1748828723398,0.37587529,2528.7,2528.5,3.95479319]
[1748828723597,2.74887305,2528.9,2528.5,3.95479319]
[1748828723803,0.37594317,2528.8,2528.5,3.95479319]
[1748828724025,0.37594317,2528.7,2528.5,3.95479319]
[1748828724225,2.74887305,2528.7,2528.5,3.95479319]
[1748828725804,3.29887305,2528.7,2528.6,3.95475757]
[1748828726006,3.67494159,2528.7,2528.5,3.95483955]
[1748828726337,0.55,2528.7,2528.5,3.95483955]
[1748828726517,0.55,2528.7,2528.5,4.82329731]
[1748828727145,0.55,2528.7,2528.5,0.86845776]
[1748828727328,0.55,2528.8,2528.7,3.95448679]
[1748828727534,0.92618894,2528.8,2528.6,3.95467639]
[1748828727712,0.37618894,2528.7,2528.6,3.95467639]
[1748828727906,0.37618894,2528.7,2528.5,3.9548658]
[1748828728124,0.55,2528.8,2528.5,3.9548658]
[1748828728422,0.37618924,2528.7,2528.6,3.95475757]
[1748828728607,0.37623372,2528.7,2528.6,3.95475757]